[Event "FIDE WCCC Girls-12 2024"]
[Site "Montesilvano"]
[Date "2024.11.18"]
[Round "3.29"]
[White "Sevastsyanchuk, Anastasiya"]
[Black "Xia, Miaoyan"]
[Result "0-1"]
[ECO "C89"]
[WhiteElo "1595"]
[BlackElo "1711"]
[PlyCount "110"]
[EventDate "2024.11.18"]
[EventType "swiss"]
[EventCountry "ITA"]
[TimeControl "5400+30"]

1. e4 {[%emt 0:00:02]} e5 {[%emt 0:00:08]} 2. Nf3 {[%emt 0:00:08]} Nc6 {[%emt 0:00:11]} 3. Bb5 {[%emt 0:00:10]} a6 {[%emt 0:00:10]} 4. Ba4 {[%emt 0:00:08]} Nf6 {[%emt 0:00:09]} 5. O-O {[%emt 0:00:11]} Be7 {[%emt 0:00:10]} 6. Re1 {[%emt 0:00:11]} b5 {[%emt 0:00:09]} 7. Bb3 {[%emt 0:00:08]} O-O {[%emt 0:00:14]} 8. d3 {[%emt 0:00:06]} Bb7 {[%emt 0:00:57]} 9. c3 {[%emt 0:05:07]} d5 {[%emt 0:09:54]} 10. exd5 {[%emt 0:01:03]} Nxd5 {[%emt 0:00:25]} 11. Nxe5 {[%emt 0:00:10]} Na5 {[%emt 0:01:03]} 12. Bc2 {[%emt 0:01:50]} Bd6 {[%emt 0:00:52]} 13. d4 {[%emt 0:01:27]} Re8 {[%emt 0:02:23]} 14. Bxh7+ {[%emt 0:23:22]} Kxh7 {[%emt 0:06:25]} 15. Qh5+ {[%emt 0:00:07]} Kg8 {[%emt 0:01:32]} 16. Re4 {[%emt 0:00:28]} Bxe5 {[%emt 0:02:02]} 17. Rh4 {[%emt 0:00:11]} Kf8 {[%emt 0:01:07]} 18. dxe5 {[%emt 0:00:39]} Nf6 {[%emt 0:02:53]} 19. Qh8+ {[%emt 0:06:23]} Ng8 {[%emt 0:00:29]} 20. Rd4 {[%emt 0:02:34]} Qf6 {[%emt 0:03:31]} 21. Be3 {[%emt 0:07:03]} Rxe5 {[%emt 0:03:18]} 22. Nd2 {[%emt 0:02:32]} Qg6 {[%emt 0:00:53]} 23. Qh3 {[%emt 0:01:01]} Rh5 {[%emt 0:00:21]} 24. Rg4 {[%emt 0:02:29]} Rxh3 {[%emt 0:00:20]} 25. Bc5+ {[%emt 0:00:19]} Ne7 {[%emt 0:00:44]} 26. Rxg6 {[%emt 0:00:18]} fxg6 {[%emt 0:02:24]} 27. gxh3 {[%emt 0:00:17]} Kf7 {[%emt 0:00:29]} 28. Re1 {[%emt 0:02:28]} Nf5 {[%emt 0:00:37]} 29. Ne4 {[%emt 0:01:59]} Bxe4 {[%emt 0:00:37]} 30. Rxe4 {[%emt 0:00:06]} Rd8 {[%emt 0:00:35]} 31. a4 {[%emt 0:03:19]} Nb7 {[%emt 0:00:50]} 32. Ba3 {[%emt 0:02:34]} c5 {[%emt 0:00:46]} 33. axb5 {[%emt 0:00:29]} axb5 {[%emt 0:00:32]} 34. Re5 {[%emt 0:00:10]} Nh4 {[%emt 0:00:31]} 35. Kf1 {[%emt 0:00:13]} Nf3 {[%emt 0:00:24]} 36. Re3 {[%emt 0:00:09]} Nd2+ {[%emt 0:00:27]} 37. Kg2 {[%emt 0:00:42]} Nc4 {[%emt 0:00:15]} 38. Rf3+ {[%emt 0:00:18]} Kg8 {[%emt 0:00:10]} 39. Rg3 {[%emt 0:00:14]} Nxa3 {[%emt 0:00:09]} 40. bxa3 {[%emt 0:00:04]} Kh7 {[%emt 0:00:21]} 41. Re3 {[%emt 0:00:28]} Ra8 {[%emt 0:00:42]} 42. Re7 {[%emt 0:00:09]} Nd6 {[%emt 0:00:12]} 43. Re5 {[%emt 0:00:30]} c4 {[%emt 0:00:34]} 44. Rd5 {[%emt 0:00:10]} Ne4 {[%emt 0:00:23]} 45. Rxb5 {[%emt 0:00:13]} Rxa3 {[%emt 0:00:08]} 46. Re5 {[%emt 0:00:14]} Nxc3 {[%emt 0:00:31]} 47. Rc5 {[%emt 0:00:08]} Ra4 {[%emt 0:00:14]} 48. f3 {[%emt 0:00:21]} Na2 {[%emt 0:00:56]} 49. h4 {[%emt 0:00:09]} c3 {[%emt 0:00:09]} 50. h5 {[%emt 0:00:05]} gxh5 {[%emt 0:00:16]} 51. Rxh5+ {[%emt 0:00:05]} Kg6 {[%emt 0:00:06]} 52. Rc5 {[%emt 0:00:06]} Rb4 {[%emt 0:00:13]} 53. Kg3 {[%emt 0:00:10]} Rb2 {[%emt 0:00:17]} 54. Rc6+ {[%emt 0:00:07]} Kh7 {[%emt 0:00:06]} 55. f4 {[%emt 0:00:41]} c2 {[%emt 0:00:09]} 0-1

[Event "FIDE WCCC Girls-12 2024"]
[Site "Montesilvano"]
[Date "2024.11.18"]
[Round "3.31"]
[White "Saharkar, Sharvari"]
[Black "Gailevska, Milana"]
[Result "0-1"]
[ECO "C02"]
[WhiteElo "1581"]
[BlackElo "1698"]
[PlyCount "42"]
[EventDate "2024.11.18"]
[EventType "swiss"]
[EventCountry "ITA"]
[TimeControl "5400+30"]

1. e4 {[%emt 0:00:03]} e6 {[%emt 0:00:07]} 2. d4 {[%emt 0:00:27]} d5 {[%emt 0:00:06]} 3. e5 {[%emt 0:00:24]} c5 {[%emt 0:00:07]} 4. c3 {[%emt 0:00:42]} Qb6 {[%emt 0:00:09]} 5. Nf3 {[%emt 0:01:23]} Nc6 {[%emt 0:00:10]} 6. Bd3 {[%emt 0:01:06]} cxd4 {[%emt 0:03:33]} 7. cxd4 {[%emt 0:00:22]} Bd7 {[%emt 0:00:04]} 8. Bc2 {[%emt 0:00:31]} Nb4 {[%emt 0:00:27]} 9. Nc3 {[%emt 0:01:47]} Nxc2+ {[%emt 0:00:53]} 10. Qxc2 {[%emt 0:00:26]} Ne7 {[%emt 0:03:09]} 11. Be3 {[%emt 0:03:56]} Nf5 {[%emt 0:04:38]} 12. Rd1 {[%emt 0:04:44]} Rc8 {[%emt 0:02:25]} 13. Qd2 {[%emt 0:05:51]} Bb5 {[%emt 0:03:01]} 14. Rc1 {[%emt 0:03:32]} Bb4 {[%emt 0:03:03]} 15. a3 {[%emt 0:04:30]} Bxc3 {[%emt 0:00:35]} 16. Rxc3 {[%emt 0:00:37]} O-O {[%emt 0:03:45]} 17. Ng1 {[%emt 0:06:12]} Rxc3 {[%emt 0:03:18]} 18. bxc3 {[%emt 0:01:07]} Nh4 {[%emt 0:01:20]} 19. f3 {[%emt 0:00:55]} Bc4 {[%emt 0:00:44]} 20. Kf2 {[%emt 0:01:59]} Qb1 {[%emt 0:04:18]} 21. g3 {[%emt 0:05:08]} Qf1# {[%emt 0:00:29]} 0-1

[Event "FIDE WCCC Girls-12 2024"]
[Site "Montesilvano"]
[Date "2024.11.18"]
[Round "3.33"]
[White "Hrckova, Anna"]
[Black "Siskou, Evangelia"]
[Result "0-1"]
[ECO "B38"]
[WhiteElo "1441"]
[BlackElo "1884"]
[PlyCount "46"]
[EventDate "2024.11.18"]
[EventType "swiss"]
[EventCountry "ITA"]
[TimeControl "5400+30"]

1. e4 {[%emt 0:00:03]} c5 {[%emt 0:00:01]} 2. Nf3 {[%emt 0:00:09]} Nc6 {[%emt 0:00:07]} 3. d4 {[%emt 0:00:07]} cxd4 {[%emt 0:00:05]} 4. Nxd4 {[%emt 0:00:10]} g6 {[%emt 0:00:05]} 5. c4 {[%emt 0:00:23]} Bg7 {[%emt 0:00:05]} 6. Be3 {[%emt 0:00:12]} Nf6 {[%emt 0:00:07]} 7. Nc3 {[%emt 0:00:10]} O-O {[%emt 0:00:08]} 8. Be2 {[%emt 0:00:16]} d6 {[%emt 0:00:01]} 9. O-O {[%emt 0:00:12]} Bd7 {[%emt 0:00:02]} 10. h3 {[%emt 0:00:07]} Nxd4 {[%emt 0:00:31]} 11. Bxd4 {[%emt 0:00:27]} Bc6 {[%emt 0:00:07]} 12. Qd3 {[%emt 0:00:13]} a5 {[%emt 0:00:51]} 13. Rfd1 {[%emt 0:08:11]} a4 {[%emt 0:07:22]} 14. Rab1 {[%emt 0:04:57]} Qa5 {[%emt 0:06:34]} 15. a3 {[%emt 0:05:55]} Qg5 {[%emt 0:09:11]} 16. Be3 {[%emt 0:02:27]} Qh4 {[%emt 0:01:20]} 17. f4 {[%emt 0:07:10]} Nd7 {[%emt 0:08:54]} 18. Kh2 {[%emt 0:06:41]} Nc5 {[%emt 0:01:53]} 19. Qc2 {[%emt 0:00:08]} Bxc3 {[%emt 0:03:50]} 20. g3 {[%emt 0:14:46]} Qf6 {[%emt 0:05:16]} 21. Bxc5 {[%emt 0:03:33]} dxc5 {[%emt 0:12:27]} 22. e5 {[%emt 0:01:35]} Bxe5 {[%emt 0:00:27]} 23. fxe5 {[%emt 0:00:14]} Qf2# {[%emt 0:00:16]} 0-1

[Event "FIDE WCCC Girls-12 2024"]
[Site "Montesilvano"]
[Date "2024.11.18"]
[Round "3.34"]
[White "Wang, Tianmu"]
[Black "Kovalskyy, Alicia"]
[Result "1-0"]
[ECO "B50"]
[WhiteElo "1640"]
[BlackElo "1871"]
[PlyCount "75"]
[EventDate "2024.11.18"]
[EventType "swiss"]
[EventCountry "ITA"]
[TimeControl "5400+30"]

1. e4 {[%emt 1:31:00]} c5 {[%emt 0:00:06]} 2. Nf3 {[%emt 0:00:00]} d6 {[%emt 0:00:05]} 3. c3 {[%emt 0:00:00]} Nf6 {[%emt 0:00:14]} 4. Qc2 {[%emt 0:00:00]} Nc6 {[%emt 0:14:58]} 5. d4 {[%emt 0:00:00]} cxd4 {[%emt 0:06:55]} 6. cxd4 {[%emt 0:00:00]} Bg4 {[%emt 0:11:44]} 7. Nbd2 {[%emt 0:00:00]} Rc8 {[%emt 0:03:03]} 8. d5 {[%emt 0:00:00]} Na5 {[%emt 0:17:47]} 9. Qa4+ {[%emt 0:00:00]} Bd7 {[%emt 0:02:48]} 10. Bb5 {[%emt 0:00:00]} a6 {[%emt 0:05:24]} 11. Bxd7+ {[%emt 0:00:00]} Nxd7 {[%emt 0:00:06]} 12. O-O {[%emt 0:00:00]} b5 {[%emt 0:11:02]} 13. Qd4 {[%emt 0:00:00]} Qb6 {[%emt 0:05:59]} 14. Qd3 {[%emt 0:00:00]} Nc4 {[%emt 0:07:25]} 15. Nxc4 {[%emt 0:00:00]} Rxc4 {[%emt 0:01:41]} 16. Be3 {[%emt 0:00:00]} Nc5 {[%emt 0:02:48]} 17. Qd2 {[%emt 0:00:00]} Qc7 {[%emt 0:03:13]} 18. Bxc5 {[%emt 0:00:00]} Rxc5 {[%emt 0:01:46]} 19. Rac1 {[%emt 0:00:00]} e6 {[%emt 0:01:16]} 20. Nd4 {[%emt 0:00:00]} Qd7 {[%emt 0:02:10]} 21. b4 {[%emt 0:00:00]} Rxc1 {[%emt 0:00:00]} 22. Rxc1 {[%emt 0:00:00]} e5 {[%emt 0:00:00]} 23. Nc6 {[%emt 0:00:00]} Be7 {[%emt 0:00:07]} 24. Nxe7 {[%emt 0:00:00]} Kxe7 {[%emt 0:00:08]} 25. Qg5+ {[%emt 0:00:00]} Kf8 {[%emt 0:00:10]} 26. Rc6 {[%emt 0:00:00]} h6 {[%emt 0:00:25]} 27. Qc1 {[%emt 0:00:00]} g5 {[%emt 0:00:11]} 28. Rxa6 {[%emt 0:00:00]} Kg7 {[%emt 0:00:09]} 29. Rc6 {[%emt 0:00:00]} Ra8 {[%emt 0:01:12]} 30. a3 {[%emt 0:00:00]} Ra4 {[%emt 0:00:36]} 31. h3 {[%emt 0:01:19]} Qa7 {[%emt 0:00:46]} 32. Rxd6 {[%emt 0:01:52]} Rxa3 {[%emt 0:00:07]} 33. Qb2 {[%emt 0:01:04]} Ra1+ {[%emt 0:00:55]} 34. Kh2 {[%emt 0:00:09]} f6 {[%emt 0:00:17]} 35. Qc2 {[%emt 0:02:48]} Ra2 {[%emt 0:00:41]} 36. Qc5 {[%emt 0:01:07]} Qa4 {[%emt 0:01:38]} 37. Rd7+ {[%emt 0:03:05]} Kg6 {[%emt 0:00:12]} 38. Qf8 {[%emt 0:01:00]} 1-0

[Event "FIDE WCCC Girls-12 2024"]
[Site "Montesilvano"]
[Date "2024.11.18"]
[Round "3.35"]
[White "Lukin, Yesenia"]
[Black "Istratova, Nika"]
[Result "1/2-1/2"]
[ECO "D02"]
[WhiteElo "1732"]
[BlackElo "1473"]
[PlyCount "156"]
[EventDate "2024.11.18"]
[EventType "swiss"]
[EventCountry "ITA"]
[TimeControl "5400+30"]

1. d4 {[%emt 0:00:24]} d5 {[%emt 0:00:09]} 2. Bf4 {[%emt 0:00:05]} Nf6 {[%emt 0:00:37]} 3. e3 {[%emt 0:00:18]} e6 {[%emt 0:00:35]} 4. Nf3 {[%emt 0:00:38]} Nbd7 {[%emt 0:01:27]} 5. Bd3 {[%emt 0:01:16]} b6 {[%emt 0:01:42]} 6. Nbd2 {[%emt 0:00:50]} Bb7 {[%emt 0:01:14]} 7. c3 {[%emt 0:01:25]} Ne4 {[%emt 0:08:50]} 8. Qc2 {[%emt 0:05:55]} Ndf6 {[%emt 0:13:09]} 9. Be5 {[%emt 0:16:30]} Bd6 {[%emt 0:07:17]} 10. Bxd6 {[%emt 0:09:28]} Qxd6 {[%emt 0:03:17]} 11. h3 {[%emt 0:00:35]} a5 {[%emt 0:13:17]} 12. Rc1 {[%emt 0:07:28]} O-O {[%emt 0:10:49]} 13. O-O {[%emt 0:02:13]} Ba6 {[%emt 0:05:28]} 14. c4 {[%emt 0:09:41]} Nxd2 {[%emt 0:08:46]} 15. Nxd2 {[%emt 0:04:51]} c5 {[%emt 0:04:13]} 16. cxd5 {[%emt 0:04:38]} Bxd3 {[%emt 0:02:21]} 17. Qxd3 {[%emt 0:00:39]} Qxd5 {[%emt 0:01:34]} 18. Qc4 {[%emt 0:05:00]} cxd4 {[%emt 0:04:52]} 19. exd4 {[%emt 0:05:03]} Rad8 {[%emt 0:02:31]} 20. Nf3 {[%emt 0:02:52]} Rfe8 {[%emt 0:02:26]} 21. Rfe1 {[%emt 0:05:27]} Qxc4 {[%emt 0:02:30]} 22. Rxc4 {[%emt 0:00:09]} Rd6 {[%emt 0:00:39]} 23. Re5 {[%emt 0:02:40]} h6 {[%emt 0:00:55]} 24. Rb5 {[%emt 0:00:39]} Nd5 {[%emt 0:01:25]} 25. Kh2 {[%emt 0:03:13]} Kh7 {[%emt 0:00:53]} 26. Kg3 {[%emt 0:02:07]} f6 {[%emt 0:00:41]} 27. Nd2 {[%emt 0:02:15]} Rdd8 {[%emt 0:02:23]} 28. Nf3 {[%emt 0:00:55]} Rc8 {[%emt 0:00:00]} 29. b3 {[%emt 0:03:11]} Rb8 {[%emt 0:00:25]} 30. Rc6 {[%emt 0:00:25]} Kg8 {[%emt 0:01:05]} 31. Ng1 {[%emt 0:01:10]} Kf7 {[%emt 0:00:00]} 32. Ne2 {[%emt 0:00:47]} Red8 {[%emt 0:00:07]} 33. Nf4 {[%emt 0:02:17]} Nxf4 {[%emt 0:00:29]} 34. Kxf4 {[%emt 0:00:03]} Rxd4+ {[%emt 0:00:07]} 35. Ke3 {[%emt 0:00:07]} Rb4 {[%emt 0:00:59]} 36. Rxb4 {[%emt 0:00:05]} axb4 {[%emt 0:00:03]} 37. Rc4 {[%emt 0:00:16]} e5 {[%emt 0:00:32]} 38. Rxb4 {[%emt 0:00:30]} Ke6 {[%emt 0:00:41]} 39. f4 {[%emt 0:00:37]} exf4+ {[%emt 0:00:29]} 40. Kxf4 {[%emt 0:00:58]} Kd5 {[%emt 0:00:47]} 41. a4 {[%emt 0:01:09]} Kc6 {[%emt 0:00:12]} 42. Kf5 {[%emt 0:00:29]} Rb7 {[%emt 0:00:28]} 43. a5 {[%emt 0:02:11]} b5 {[%emt 0:01:05]} 44. Rg4 {[%emt 0:00:27]} b4 {[%emt 0:00:24]} 45. a6 {[%emt 0:00:07]} Ra7 {[%emt 0:01:07]} 46. Rxb4 {[%emt 0:00:07]} Rxa6 {[%emt 0:00:00]} 47. Rg4 {[%emt 0:00:13]} Ra7 {[%emt 0:00:05]} 48. Kg6 {[%emt 0:00:41]} Rb7 {[%emt 0:00:27]} 49. Kh7 {[%emt 0:00:42]} f5 {[%emt 0:00:51]} 50. Rg6+ {[%emt 0:00:12]} Kd5 {[%emt 0:00:30]} 51. Rxg7 {[%emt 0:00:04]} Rxb3 {[%emt 0:00:15]} 52. Kxh6 {[%emt 0:00:08]} f4 {[%emt 0:01:22]} 53. Rf7 {[%emt 0:00:40]} Rg3 {[%emt 0:00:00]} 54. Rxf4 {[%emt 0:00:08]} Rxg2 {[%emt 0:00:00]} 55. h4 {[%emt 0:00:19]} Ke6 {[%emt 0:00:54]} 56. h5 {[%emt 0:01:19]} Ke5 {[%emt 0:00:30]} 57. Rf7 {[%emt 0:01:23]} Rg4 {[%emt 0:00:34]} 58. Kh7 {[%emt 0:00:54]} Rg5 {[%emt 0:00:29]} 59. h6 {[%emt 0:00:25]} Ke6 {[%emt 0:01:03]} 60. Rg7 {[%emt 0:00:20]} Rf5 {[%emt 0:00:00]} 61. Kg8 {[%emt 0:00:46]} Ra5 {[%emt 0:00:06]} 62. Kh7 {[%emt 0:00:34]} Rf5 {[%emt 0:00:23]} 63. Kg6 {[%emt 0:00:19]} Rf6+ {[%emt 0:00:23]} 64. Kg5 {[%emt 0:00:12]} Rf5+ {[%emt 0:00:14]} 65. Kg4 {[%emt 0:00:40]} Rf6 {[%emt 0:00:46]} 66. h7 {[%emt 0:00:44]} Rh6 {[%emt 0:00:26]} 67. Kg5 {[%emt 0:00:33]} Rh1 {[%emt 0:00:11]} 68. Kg6 {[%emt 0:00:31]} Rg1+ {[%emt 0:00:18]} 69. Kh6 {[%emt 0:00:14]} Rh1+ {[%emt 0:00:05]} 70. Kg5 {[%emt 0:00:14]} Rg1+ {[%emt 0:00:07]} 71. Kf4 {[%emt 0:00:38]} Rf1+ {[%emt 0:00:09]} 72. Ke3 {[%emt 0:00:09]} Rh1 {[%emt 0:00:30]} 73. Kf3 {[%emt 0:01:00]} Kf6 {[%emt 0:00:20]} 74. Ra7 {[%emt 0:00:22]} Kg6 {[%emt 0:00:19]} 75. Kg4 {[%emt 0:00:10]} Rxh7 {[%emt 0:00:52]} 76. Ra6+ {[%emt 0:00:04]} Kg7 {[%emt 0:00:22]} 77. Kg5 {[%emt 0:00:08]} Kh8 {[%emt 0:01:45]} 78. Kg6 {[%emt 0:00:26]} Rg7+ {[%emt 0:00:23]} 1/2-1/2

[Event "FIDE WCCC Girls-12 2024"]
[Site "Montesilvano"]
[Date "2024.11.18"]
[Round "3.36"]
[White "Liu, Jingyu"]
[Black "Chichinadze, Anastasia"]
[Result "0-1"]
[ECO "E40"]
[WhiteElo "1680"]
[BlackElo "1682"]
[PlyCount "64"]
[EventDate "2024.11.18"]
[EventType "swiss"]
[EventCountry "ITA"]
[TimeControl "5400+30"]

1. d4 {[%emt 0:00:03]} Nf6 {[%emt 0:00:41]} 2. c4 {[%emt 0:00:07]} e6 {[%emt 0:00:03]} 3. Nc3 {[%emt 0:00:06]} Bb4 {[%emt 0:00:03]} 4. e3 {[%emt 0:00:07]} Bxc3+ {[%emt 0:00:41]} 5. bxc3 {[%emt 0:00:07]} d6 {[%emt 0:01:17]} 6. g3 {[%emt 0:01:04]} O-O {[%emt 0:00:06]} 7. Bg2 {[%emt 0:00:04]} e5 {[%emt 0:03:10]} 8. Ne2 {[%emt 0:00:51]} Nc6 {[%emt 0:02:42]} 9. Ba3 {[%emt 0:04:47]} Re8 {[%emt 0:01:09]} 10. Rb1 {[%emt 0:03:23]} e4 {[%emt 0:13:16]} 11. O-O {[%emt 0:06:10]} Rb8 {[%emt 0:02:29]} 12. d5 {[%emt 0:12:07]} Ne5 {[%emt 0:05:28]} 13. Qa4 {[%emt 0:11:28]} Bg4 {[%emt 0:15:23]} 14. Nd4 {[%emt 0:00:37]} Qc8 {[%emt 0:01:56]} 15. Rb2 {[%emt 0:18:18]} Nf3+ {[%emt 0:11:16]} 16. Kh1 {[%emt 0:10:43]} Nxd4 {[%emt 0:08:36]} 17. cxd4 {[%emt 0:02:38]} Bf3 {[%emt 0:00:34]} 18. Kg1 {[%emt 0:03:36]} Qf5 {[%emt 0:03:16]} 19. h3 {[%emt 0:03:13]} h5 {[%emt 0:02:11]} 20. Qc2 {[%emt 0:02:03]} h4 {[%emt 0:03:56]} 21. Kh2 {[%emt 0:04:18]} Bxg2 {[%emt 0:01:09]} 22. Kxg2 {[%emt 0:00:08]} Qf3+ {[%emt 0:00:05]} 23. Kg1 {[%emt 0:02:30]} hxg3 {[%emt 0:00:12]} 24. fxg3 {[%emt 0:00:07]} Qxe3+ {[%emt 0:00:51]} 25. Qf2 {[%emt 0:03:32]} Qxa3 {[%emt 0:00:12]} 26. Rb3 {[%emt 0:00:37]} Qa4 {[%emt 0:00:38]} 27. g4 {[%emt 0:01:03]} Qd7 {[%emt 0:03:46]} 28. g5 {[%emt 0:01:11]} Nh5 {[%emt 0:01:56]} 29. Qh4 {[%emt 0:02:50]} g6 {[%emt 0:00:24]} 30. Re3 {[%emt 0:00:08]} Re7 {[%emt 0:01:15]} 31. Kg2 {[%emt 0:01:23]} Qa4 {[%emt 0:01:14]} 32. Rc3 {[%emt 0:01:09]} e3 {[%emt 0:16:35]} 0-1

[Event "FIDE WCCC Girls-12 2024"]
[Site "Montesilvano"]
[Date "2024.11.18"]
[Round "3.37"]
[White "Potikha, Shelley"]
[Black "Ivanova, Gabriela"]
[Result "1-0"]
[ECO "B12"]
[WhiteElo "1561"]
[BlackElo "1680"]
[PlyCount "121"]
[EventDate "2024.11.18"]
[EventType "swiss"]
[EventCountry "ITA"]
[TimeControl "5400+30"]

1. e4 {[%emt 0:00:03]} c6 {[%emt 0:00:09]} 2. d4 {[%emt 0:00:05]} d5 {[%emt 0:00:12]} 3. e5 {[%emt 0:00:06]} Bf5 {[%emt 0:00:22]} 4. h4 {[%emt 0:00:22]} h6 {[%emt 0:01:57]} 5. g4 {[%emt 0:00:18]} Bh7 {[%emt 0:00:20]} 6. e6 {[%emt 0:01:03]} fxe6 {[%emt 0:06:45]} 7. Bd3 {[%emt 0:08:38]} Bxd3 {[%emt 0:03:54]} 8. Qxd3 {[%emt 0:01:23]} Nf6 {[%emt 0:10:00]} 9. Qg6+ {[%emt 0:06:43]} Kd7 {[%emt 0:00:16]} 10. Nf3 {[%emt 0:07:15]} Qb6 {[%emt 0:07:41]} 11. Ne5+ {[%emt 0:01:33]} Kc8 {[%emt 0:01:08]} 12. Qf7 {[%emt 0:22:36]} Qxd4 {[%emt 0:09:47]} 13. Qxe6+ {[%emt 0:02:23]} Nbd7 {[%emt 0:00:34]} 14. Nxd7 {[%emt 0:26:16]} Nxd7 {[%emt 0:00:24]} 15. O-O {[%emt 0:05:21]} h5 {[%emt 0:04:30]} 16. Bg5 {[%emt 0:11:18]} Qxg4+ {[%emt 0:02:30]} 17. Qxg4 {[%emt 0:00:09]} hxg4 {[%emt 0:00:10]} 18. Nc3 {[%emt 0:00:22]} Nf6 {[%emt 0:01:03]} 19. Rfe1 {[%emt 0:00:31]} Kd7 {[%emt 0:02:33]} 20. Rad1 {[%emt 0:00:15]} e6 {[%emt 0:01:24]} 21. Ne4 {[%emt 0:00:56]} Be7 {[%emt 0:02:05]} 22. c4 {[%emt 0:02:02]} Rae8 {[%emt 0:10:21]} 23. cxd5 {[%emt 0:00:50]} cxd5 {[%emt 0:00:54]} 24. Kg2 {[%emt 0:00:57]} Kc8 {[%emt 0:02:17]} 25. Rc1+ {[%emt 0:00:23]} Kb8 {[%emt 0:00:14]} 26. Bf4+ {[%emt 0:00:36]} Ka8 {[%emt 0:00:09]} 27. Nd6 {[%emt 0:00:51]} Bxd6 {[%emt 0:01:24]} 28. Bxd6 {[%emt 0:00:09]} Rxh4 {[%emt 0:00:59]} 29. Bg3 {[%emt 0:00:32]} Rh7 {[%emt 0:00:49]} 30. Rc7 {[%emt 0:00:31]} g6 {[%emt 0:02:53]} 31. Rec1 {[%emt 0:00:38]} Rxc7 {[%emt 0:00:36]} 32. Rxc7 {[%emt 0:00:03]} Rd8 {[%emt 0:01:49]} 33. Bh4 {[%emt 0:00:49]} Kb8 {[%emt 0:03:12]} 34. Rf7 {[%emt 0:00:26]} Rd7 {[%emt 0:07:05]} 35. Rxf6 {[%emt 0:00:27]} d4 {[%emt 0:00:40]} 36. Bg3+ {[%emt 0:00:08]} Kc8 {[%emt 0:00:31]} 37. Rf8+ {[%emt 0:00:12]} Rd8 {[%emt 0:00:11]} 38. Rxd8+ {[%emt 0:00:04]} Kxd8 {[%emt 0:00:02]} 39. Be5 {[%emt 0:00:22]} d3 {[%emt 0:00:22]} 40. Bc3 {[%emt 0:00:41]} e5 {[%emt 0:00:27]} 41. Kg3 {[%emt 0:00:12]} Ke7 {[%emt 0:00:38]} 42. Kxg4 {[%emt 0:00:09]} Kf6 {[%emt 0:00:13]} 43. f4 {[%emt 0:00:51]} Ke6 {[%emt 0:00:37]} 44. fxe5 {[%emt 0:00:13]} d2 {[%emt 0:01:12]} 45. Bxd2 {[%emt 0:00:06]} Kxe5 {[%emt 0:00:09]} 46. Kg5 {[%emt 0:00:13]} Kd4 {[%emt 0:00:44]} 47. Bc3+ {[%emt 0:00:09]} Kc4 {[%emt 0:00:28]} 48. Kxg6 {[%emt 0:00:10]} b5 {[%emt 0:00:14]} 49. a3 {[%emt 0:00:20]} Kb3 {[%emt 0:00:22]} 50. Kf5 {[%emt 0:00:31]} Kc4 {[%emt 0:00:23]} 51. Ke4 {[%emt 0:00:12]} a6 {[%emt 0:00:32]} 52. Ke5 {[%emt 0:00:49]} Kc5 {[%emt 0:00:28]} 53. Bb4+ {[%emt 0:00:11]} Kc4 {[%emt 0:00:29]} 54. Kd6 {[%emt 0:00:20]} Kb3 {[%emt 0:00:38]} 55. Bc3 {[%emt 0:00:16]} Ka4 {[%emt 0:01:37]} 56. Kc5 {[%emt 0:01:41]} a5 {[%emt 0:01:17]} 57. Bd2 {[%emt 0:02:45]} b4 {[%emt 0:02:47]} 58. axb4 {[%emt 0:00:43]} axb4 {[%emt 0:00:04]} 59. Bxb4 {[%emt 0:00:06]} Kb3 {[%emt 0:00:14]} 60. Bc3 {[%emt 0:00:08]} Ka4 {[%emt 0:00:28]} 61. b4 {[%emt 0:00:23]} 1-0

[Event "FIDE WCCC Girls-12 2024"]
[Site "Montesilvano"]
[Date "2024.11.18"]
[Round "3.38"]
[White "Moscovitch, Shelly"]
[Black "Chen, Pin-I"]
[Result "1/2-1/2"]
[ECO "B18"]
[WhiteElo "1552"]
[BlackElo "1601"]
[PlyCount "62"]
[EventDate "2024.11.18"]
[EventType "swiss"]
[EventCountry "ITA"]
[TimeControl "5400+30"]

1. e4 {[%emt 0:00:23]} c6 {[%emt 0:00:09]} 2. d4 {[%emt 0:01:08]} d5 {[%emt 0:00:10]} 3. Nd2 {[%emt 0:01:00]} dxe4 {[%emt 0:00:14]} 4. Nxe4 {[%emt 0:00:41]} Bf5 {[%emt 0:00:57]} 5. Ng3 {[%emt 0:02:06]} Bg6 {[%emt 0:00:16]} 6. c3 {[%emt 0:02:48]} Nd7 {[%emt 0:01:47]} 7. Nf3 {[%emt 0:01:52]} h6 {[%emt 0:03:46]} 8. Bc4 {[%emt 0:02:58]} Ngf6 {[%emt 0:01:39]} 9. O-O {[%emt 0:02:12]} e6 {[%emt 0:00:27]} 10. Re1 {[%emt 0:03:21]} Be7 {[%emt 0:00:52]} 11. Be3 {[%emt 0:03:50]} O-O {[%emt 0:00:22]} 12. Bb3 {[%emt 0:02:58]} Rc8 {[%emt 0:08:09]} 13. Qe2 {[%emt 0:10:12]} c5 {[%emt 0:06:26]} 14. Rad1 {[%emt 0:05:53]} Qc7 {[%emt 0:04:13]} 15. Bc2 {[%emt 0:05:44]} Bxc2 {[%emt 0:01:53]} 16. Qxc2 {[%emt 0:00:38]} Nd5 {[%emt 0:02:36]} 17. dxc5 {[%emt 0:08:14]} Nxe3 {[%emt 0:03:05]} 18. Rxe3 {[%emt 0:01:11]} Bxc5 {[%emt 0:02:07]} 19. Re2 {[%emt 0:02:30]} Rfd8 {[%emt 0:01:22]} 20. Ne4 {[%emt 0:02:47]} Be7 {[%emt 0:03:50]} 21. Red2 {[%emt 0:01:34]} Nf6 {[%emt 0:05:13]} 22. Nxf6+ {[%emt 0:02:36]} Bxf6 {[%emt 0:00:26]} 23. Re1 {[%emt 0:07:45]} Rxd2 {[%emt 0:01:38]} 24. Qxd2 {[%emt 0:00:27]} Rd8 {[%emt 0:03:31]} 25. Qe3 {[%emt 0:01:19]} a6 {[%emt 0:03:20]} 26. h3 {[%emt 0:02:10]} Qd6 {[%emt 0:03:56]} 27. Qe4 {[%emt 0:02:27]} Qd5 {[%emt 0:01:22]} 28. Qb4 {[%emt 0:01:40]} Rd7 {[%emt 0:07:35]} 29. Qa4 {[%emt 0:22:36]} Rd8 {[%emt 0:06:19]} 30. Qb4 {[%emt 0:00:00]} Rd7 {[%emt 0:00:12]} 31. Qa4 {[%emt 0:00:00]} Rd8 {[%emt 0:00:05]} 1/2-1/2